bitfinex/quotes_SOLUSD_20220114
["timestamp","ask_amount","ask_price","bid_price","bid_amount"]
[1642184219460,106.41306426,146.42,146.36,1.9477348]
[1642184220056,100.41306426,146.42,146.36,1.9477348]
[1642184220658,106.41306426,146.42,146.36,1.9477348]
[1642184221161,131.23127496,146.42,146.36,1.9477348]
[1642184221762,131.23127496,146.42,146.33,1.9477348]
[1642184223763,132.94421651,146.42,146.31,1.9477348]
[1642184223960,132.94421651,146.42,146.31,7.9477348]
[1642184224664,256.20421651,146.42,146.31,7.9477348]
[1642184225062,262.96642302,146.42,146.31,1.9477348]
[1642184225261,123.26,146.38,146.31,1.9477348]
[1642184225462,44.0,146.32,146.28,3.89197372]
[1642184225662,2.734,146.31,146.28,3.89197372]
[1642184225862,4.03219996,146.3,146.28,3.89197372]
[1642184226062,4.03219996,146.3,146.25,5.26802737]
[1642184226063,10.28219996,146.3,146.26,3.89197372]
[1642184226263,29.41548203,146.29,146.26,3.89197372]
[1642184226464,10.2585,146.28,146.26,3.89197372]
[1642184227063,4.03219996,146.27,146.26,3.89197372]
[1642184227664,29.41548203,146.29,146.26,3.89197372]
[1642184228064,29.41548203,146.29,146.22,3.89197372]
[1642184228262,29.41548203,146.29,146.23,6.0]
[1642184228463,22.23568203,146.29,146.23,0.25]
[1642184228664,22.23568203,146.29,146.23,10.5055]
[1642184228863,22.23568203,146.29,146.23,14.39747372]
[1642184229064,22.23568203,146.29,146.23,20.39747372]
[1642184229865,22.23568203,146.29,146.25,3.89197372]
[1642184230064,22.23568203,146.29,146.25,4.14197372]
[1642184230866,10.2557,146.32,146.25,0.25]
[1642184231066,10.5057,146.32,146.25,0.25]
[1642184231266,10.2557,146.32,146.24,20.39697372]
[1642184231666,10.5057,146.32,146.24,20.39697372]
[1642184231866,27.22648163,146.31,146.24,20.39697372]
[1642184232069,29.96048163,146.31,146.24,20.39697372]
[1642184232270,29.96048163,146.31,146.24,10.14197372]
[1642184233673,29.96048163,146.31,146.24,4.16197372]
[1642184233873,2.734,146.31,146.24,14.41707372]
[1642184234277,2.734,146.31,146.24,20.41707372]
[1642184235077,2.734,146.33,146.24,30.27707372]
[1642184235276,2.734,146.36,146.24,38.45307372]
[1642184235477,2.734,146.36,146.25,24.3742]
[1642184235675,2.734,146.4,146.3,10.2509]
[1642184235877,2.734,146.4,146.3,15.7029]
[1642184236076,2.984,146.4,146.3,11.702]
[1642184236279,27.54455139,146.39,146.3,11.702]
[1642184236479,2.733,146.38,146.3,11.702]
[1642184236882,2.983,146.38,146.3,11.702]
[1642184237178,2.983,146.38,146.3,6.25]
[1642184237378,13.2349,146.38,146.3,6.25]
[1642184238179,13.2349,146.38,146.3,0.25]
[1642184238379,13.2349,146.38,146.29,39.0532]
[1642184238579,13.2349,146.38,146.29,33.0532]
[1642184238780,2.733,146.38,146.3,17.50620768]
[1642184238981,30.27755139,146.39,146.32,10.2495]
[1642184239382,30.27755139,146.39,146.32,10.4995]
[1642184239582,27.54455139,146.39,146.32,10.4995]
[1642184239807,2.733,146.38,146.32,10.4995]
[1642184240214,2.733,146.38,146.32,0.25]
[1642184240509,2.733,146.38,146.3,6.25]
[1642184240709,2.983,146.38,146.3,6.25]
[1642184240911,2.983,146.38,146.3,0.25]
[1642184241316,2.983,146.38,146.29,28.8015]
[1642184241512,2.733,146.38,146.3,10.2509]
[1642184241712,2.983,146.38,146.29,28.8015]
[1642184243119,13.2343,146.38,146.29,39.0532]
[1642184243517,2.733,146.38,146.3,69.87414234]
[1642184243717,2.733,146.4,146.3,18.04714234]
[1642184243917,2.732,146.42,146.3,24.29714234]
[1642184244120,2.732,146.42,146.31,24.944]
[1642184244319,2.732,146.42,146.31,30.944]
[1642184244522,26.90542767,146.41,146.32,10.2494]
[1642184244719,2.732,146.4,146.33,17.15686934]
[1642184244920,2.732,146.4,146.33,23.91286934]
[1642184245120,2.732,146.42,146.33,30.16286934]
[1642184245524,2.982,146.42,146.33,30.16286934]
[1642184245722,2.732,146.42,146.33,40.41186934]
[1642184246321,31.83038775,146.43,146.33,40.41186934]
[1642184247823,31.83038775,146.43,146.33,64.41886934]
[1642184248425,31.83038775,146.43,146.33,64.67886934]
[1642184248625,2.732,146.42,146.33,64.67886934]
[1642184248824,31.83038775,146.43,146.33,64.67886934]
[1642184251525,31.83038775,146.43,146.34,3.89575801]
[1642184251727,31.83038775,146.43,146.37,10.2458]
[1642184251924,31.83038775,146.43,146.37,16.2458]
[1642184252930,2.732,146.46,146.37,16.2458]
[1642184253128,2.982,146.46,146.37,16.2458]
[1642184253327,13.2278,146.46,146.37,16.2458]
[1642184253528,13.2278,146.46,146.37,16.4958]
[1642184253929,2.732,146.46,146.37,16.4958]
[1642184254129,2.732,146.46,146.37,26.6158]
[1642184254329,3.48157085,146.49,146.38,1.70077588]
[1642184254529,3.48157085,146.49,146.43,10.2408]
[1642184254728,3.48157085,146.49,146.43,15.7408]
[1642184254929,3.48157085,146.49,146.43,21.9908]
[1642184255534,30.12288666,146.5,146.43,21.9908]
[1642184255732,2.981,146.49,146.43,5.5]
[1642184255937,2.981,146.49,146.4,22.7024]
[1642184255938,4.68177588,146.49,146.4,22.7024]
[1642184256134,4.68177588,146.49,146.41,0.25]
[1642184256533,4.68177588,146.49,146.41,6.656]
[1642184256734,12.9747,146.49,146.41,6.656]
[1642184256934,13.2247,146.49,146.41,12.656]
[1642184258334,13.2247,146.49,146.41,22.8993]
[1642184259745,13.2247,146.49,146.41,12.656]
[1642184259939,13.2247,146.49,146.41,0.25]
[1642184260140,14.92547588,146.49,146.41,0.25]
[1642184260339,14.92547588,146.49,146.4,22.9524]
[1642184260743,14.92547588,146.49,146.4,28.9524]
[1642184261841,14.92547588,146.49,146.4,22.9524]
[1642184262740,13.2247,146.49,146.4,33.1966]
[1642184263547,2.981,146.49,146.4,33.1966]
[1642184263744,2.981,146.49,146.4,39.4566]
[1642184264945,2.981,146.49,146.4,39.1966]
[1642184265745,2.981,146.49,146.4,46.6076]
[1642184265980,2.981,146.49,146.4,46.8676]
[1642184268775,2.981,146.49,146.4,39.1966]
[1642184268974,4.68177588,146.49,146.4,6.25]
[1642184269173,4.68177588,146.49,146.4,0.25]
[1642184269576,4.68177588,146.49,146.38,39.3693]
[1642184269773,83.41547588,146.49,146.38,0.25]
[1642184269975,112.36167588,146.49,146.36,16.11]
[1642184270977,115.84324673,146.49,146.36,16.11]
[1642184271178,9.86,146.48,146.36,0.25]
[1642184271376,10.2483,146.43,146.33,24.6088]
[1642184271577,2.732,146.42,146.33,24.6088]
[1642184272075,25.3283881,146.41,146.33,24.6088]
[1642184272479,25.3283881,146.41,146.33,30.8588]
[1642184272877,2.732,146.4,146.33,30.8588]
[1642184273277,2.732,146.4,146.33,30.6088]
[1642184273481,2.732,146.4,146.34,10.2478]
[1642184274884,2.732,146.4,146.34,10.4978]
[1642184275684,2.732,146.44,146.34,17.1208]
[1642184275884,2.732,146.44,146.34,23.3808]
[1642184276691,34.16682609,146.44,146.34,23.3808]
[1642184277685,34.41682609,146.44,146.34,23.3808]
[1642184277887,34.41682609,146.44,146.34,23.1208]
[1642184278085,44.66412609,146.44,146.34,23.1208]
[1642184283192,44.41412609,146.44,146.34,23.1208]
[1642184284496,44.66412609,146.44,146.34,23.1208]
[1642184285998,44.41412609,146.44,146.34,23.1208]
[1642184286998,44.41412609,146.44,146.34,22.8708]
[1642184287195,44.41412609,146.44,146.34,6.0]
[1642184287395,44.66412609,146.44,146.34,6.0]
[1642184288196,44.66412609,146.44,146.3,19.75197372]
[1642184288396,10.2505,146.4,146.31,33.4437]
[1642184288600,26.74944867,146.39,146.31,39.6937]
[1642184288799,24.01644867,146.39,146.31,39.6937]
[1642184292501,34.51724867,146.39,146.31,39.6937]
[1642184292701,2.733,146.38,146.31,29.4433]
[1642184293101,2.983,146.38,146.31,29.4433]
[1642184293302,2.733,146.38,146.31,29.4433]
[1642184294404,12.9845,146.38,146.31,39.6939]
[1642184294608,2.733,146.38,146.31,39.6939]
[1642184295904,12.9843,146.38,146.31,29.4433]
[1642184296103,13.2343,146.38,146.31,29.4433]
[1642184297007,13.2343,146.38,146.31,6.25]
[1642184297406,13.2343,146.38,146.31,0.25]
[1642184297605,13.2343,146.38,146.31,6.25]
[1642184298007,13.2343,146.38,146.31,0.25]
[1642184298206,1.1682557,146.36,146.27,1.70077588]
[1642184298408,81.4769,146.35,146.26,3.89197372]
[1642184298807,81.7269,146.35,146.26,3.89197372]
[1642184299008,83.42767588,146.35,146.26,3.89197372]
[1642184299209,92.86927057,146.34,146.26,3.89197372]
[1642184299509,2.734,146.33,146.26,4.14197372]
[1642184299749,2.734,146.33,146.26,0.25]
[1642184300043,10.256,146.32,146.21,13.75197372]
[1642184300236,71.224,146.31,146.21,13.75197372]
[1642184300438,2.734,146.31,146.21,19.75197372]
[1642184300837,2.734,146.32,146.21,19.75197372]
[1642184301043,25.19122677,146.3,146.21,19.75197372]
[1642184301238,2.734,146.29,146.22,3.89930589]
[1642184301538,12.9916,146.29,146.22,9.89930589]
[1642184301738,2.734,146.29,146.22,10.74193471]
[1642184301939,2.734,146.29,146.22,10.99193471]
[1642184302340,2.734,146.29,146.22,10.14930589]
[1642184302538,2.734,146.29,146.22,6.25]
[1642184303441,2.734,146.29,146.22,16.5065]
[1642184303643,2.734,146.29,146.22,10.5065]
[1642184303842,2.734,146.29,146.22,16.5065]
[1642184304342,2.734,146.3,146.22,16.5065]
[1642184304544,0.25,146.3,146.22,23.2675]
[1642184304743,2.734,146.29,146.22,23.2675]
[1642184304947,2.734,146.29,146.22,23.2875]
[1642184305243,2.734,146.32,146.22,23.2875]
[1642184305443,2.734,146.32,146.22,25.24827588]
[1642184306442,24.731,146.33,146.22,25.24827588]
[1642184306644,31.38966849,146.34,146.23,7.79070534]
[1642184306842,28.65566849,146.34,146.28,10.2521]
[1642184307043,28.65566849,146.34,146.28,17.0241]
[1642184307545,28.65566849,146.34,146.28,23.0241]
[1642184307944,28.65566849,146.34,146.28,16.7741]
[1642184308343,31.38866849,146.34,146.28,16.7741]
[1642184309245,28.65566849,146.34,146.28,17.0241]
[1642184309542,24.361,146.37,146.28,17.0241]
[1642184309743,2.733,146.35,146.28,17.0241]
[1642184309943,2.733,146.36,146.28,23.0241]
[1642184310545,26.92302431,146.36,146.28,23.0241]
[1642184311144,26.92302431,146.36,146.28,16.5021]
[1642184311344,26.92302431,146.36,146.28,6.25]
[1642184311546,26.92302431,146.36,146.28,0.25]
[1642184311745,26.92302431,146.36,146.26,16.5034]
[1642184312345,37.17582431,146.36,146.26,16.5034]
[1642184312545,37.17582431,146.36,146.26,19.88351568]
[1642184313848,37.17582431,146.36,146.26,16.5034]
[1642184316449,37.17582431,146.36,146.28,10.2521]
[1642184316648,26.92302431,146.36,146.28,10.2521]
[1642184316849,2.983,146.36,146.28,16.5021]
[1642184317048,2.733,146.36,146.28,22.0411]
[1642184317248,2.733,146.37,146.28,22.3011]
[1642184317451,27.3894,146.4,146.29,23.8731]
[1642184317649,27.3894,146.4,146.32,10.2493]
[1642184317852,27.6394,146.4,146.32,17.7793]
[1642184318051,57.91279408,146.4,146.32,18.0293]
[1642184318250,57.91279408,146.4,146.32,24.0293]
[1642184319051,57.66279408,146.4,146.32,18.0293]
[1642184319251,57.91279408,146.4,146.32,18.0293]
[1642184320452,57.91279408,146.4,146.32,24.0293]
[1642184323154,69.86366996,146.4,146.32,7.53]
[1642184323354,138.35366996,146.4,146.27,38.06077372]
[1642184323554,69.86366996,146.4,146.28,0.25]
[1642184324053,69.86366996,146.4,146.28,24.0384]
[1642184324261,69.86366996,146.4,146.28,39.78233916]
[1642184324457,37.8895,146.4,146.29,10.2517]
[1642184324657,27.6394,146.4,146.29,10.2517]
[1642184324858,27.6394,146.4,146.29,16.5017]
[1642184325057,27.6394,146.4,146.29,16.7617]
[1642184326290,27.6394,146.4,146.29,16.5017]
[1642184327490,27.6394,146.4,146.29,16.7617]
[1642184329991,27.6394,146.4,146.29,16.5017]
[1642184330392,37.8894,146.4,146.29,16.5017]
[1642184332392,37.8894,146.4,146.29,16.7617]
[1642184332592,37.8894,146.4,146.29,16.5017]
[1642184333193,27.6394,146.4,146.29,16.5017]
[1642184333394,27.6394,146.4,146.29,16.7617]
[1642184333596,27.6394,146.4,146.29,23.7607]
[1642184334002,27.6394,146.4,146.29,33.6207]
[1642184336602,2.983,146.4,146.29,33.6207]
[1642184336803,2.733,146.4,146.3,68.49]
[1642184337002,3.48157085,146.42,146.35,10.2456]
[1642184337203,3.48157085,146.42,146.35,27.4296]
[1642184337405,3.48157085,146.42,146.35,33.9396]
[1642184337603,3.48157085,146.43,146.35,33.9396]
[1642184337803,3.48157085,146.43,146.35,39.59438606]
[1642184338504,2.733,146.44,146.35,39.59438606]
[1642184338707,28.23775569,146.45,146.35,108.08438606]
[1642184339004,28.23775569,146.45,146.35,132.50328606]
[1642184339407,24.75618484,146.45,146.35,132.50328606]
[1642184341112,24.75618484,146.45,146.35,64.01328606]
[1642184342410,24.75618484,146.45,146.35,58.1085]
[1642184342611,25.00618484,146.45,146.35,57.8485]
[1642184343311,12.9791,146.44,146.35,57.8485]
[1642184343511,37.6877,146.44,146.35,57.8485]
[1642184343816,37.6877,146.44,146.33,10.2486]
[1642184344114,39.38847588,146.44,146.3,13.75197372]
[1642184344315,55.24847588,146.44,146.3,3.89197372]
[1642184344512,58.73004673,146.44,146.28,13.75197372]
[1642184344746,150.15977085,146.44,146.28,13.75197372]
[1642184345114,83.37054673,146.44,146.28,13.75197372]
[1642184345314,81.66977085,146.44,146.29,10.2513]
[1642184345515,81.66977085,146.44,146.29,16.5013]
[1642184345915,10.2499,146.4,146.29,59.96060641]
[1642184346115,31.84154962,146.38,146.29,65.56960641]
[1642184346517,31.84154962,146.38,146.29,46.784]
[1642184347215,31.84154962,146.38,146.3,9.86]
[1642184347516,31.84154962,146.38,146.34,10.2481]
[1642184347915,31.84154962,146.38,146.34,10.4981]
[1642184348517,31.84154962,146.38,146.34,16.4981]
[1642184348822,1.94879696,146.39,146.34,16.4981]
[1642184349019,1.94879696,146.4,146.34,23.3021]
[1642184349218,1.94879696,146.4,146.34,25.26287588]
[1642184349718,1.94879696,146.41,146.34,25.26287588]
[1642184351323,25.19636968,146.42,146.34,23.5621]
[1642184352260,1.94879696,146.42,146.35,9.86]
[1642184352424,1.94879696,146.42,146.38,10.2433]
[1642184352722,1.94879696,146.42,146.38,15.6963]
[1642184352922,1.94879696,146.42,146.38,21.9463]
[1642184353723,1.94879696,146.44,146.38,21.9463]
[1642184355624,1.94879696,146.44,146.38,22.2063]
[1642184355825,3.48157085,146.47,146.39,9.86]
[1642184356040,7.085e-05,146.47,146.42,68.49]
[1642184356225,7.085e-05,146.47,146.42,76.75]
[1642184356425,5.82232525,146.51,146.43,1.70077588]
[1642184356628,5.82232525,146.51,146.44,74.54658382]
[1642184356826,5.82232525,146.51,146.45,78.35]
[1642184357026,2.73,146.59,146.46,76.0]
[1642184357225,2.73,146.6,146.47,9.86]
[1642184357427,18.25620068,146.61,146.47,9.86]
[1642184357626,15.52620068,146.61,146.47,18.07077588]
[1642184357825,2.73,146.62,146.48,1.70077588]
[1642184358032,2.729,146.6,146.49,30.67216226]
[1642184358226,30.83548285,146.61,146.54,10.2338]
[1642184358426,2.729,146.6,146.54,10.2338]
[1642184358626,2.729,146.6,146.54,0.25]
[1642184359429,2.729,146.6,146.49,15.86]
[1642184359627,2.729,146.6,146.49,16.11]
[1642184360229,3.89348617,146.59,146.49,16.11]
[1642184360430,24.61579191,146.57,146.5,10.2366]
[1642184360628,2.729,146.56,146.5,9.4866]
[1642184361930,24.61579191,146.57,146.5,9.4866]
[1642184362530,27.34479191,146.57,146.5,9.4866]
[1642184363542,27.34479191,146.57,146.5,15.4866]
[1642184364034,24.61579191,146.57,146.5,15.4866]
[1642184364633,2.729,146.59,146.5,33.4666]
[1642184364833,2.729,146.62,146.5,33.7266]
[1642184365032,10.2338,146.63,146.5,33.7266]
[1642184365232,2.729,146.62,146.5,33.7266]
[1642184365633,28.34611359,146.61,146.5,33.4666]
[1642184366233,32.23871045,146.61,146.5,33.4666]
[1642184366434,32.48871045,146.61,146.5,33.4666]
[1642184366633,32.48871045,146.61,146.5,25.3466]
[1642184367036,2.729,146.6,146.5,25.3466]
[1642184367259,12.9653,146.6,146.5,25.3466]
[1642184367461,6.62159686,146.6,146.5,30.50144713]
[1642184368360,31.07511359,146.61,146.5,30.76144713]
[1642184368561,31.07511359,146.61,146.5,39.26644713]
[1642184369259,3.89282198,146.6,146.5,39.26644713]
[1642184369460,3.89282198,146.6,146.5,34.1116]
[1642184369762,3.89282198,146.6,146.5,25.6066]
[1642184370061,3.89282198,146.6,146.5,25.3466]
[1642184370261,4.14282198,146.6,146.5,25.3466]
[1642184370662,2.729,146.59,146.5,25.3466]
[1642184370862,22.91866778,146.58,146.5,25.3466]
[1642184375967,22.91866778,146.58,146.5,25.6066]
[1642184376166,22.91866778,146.58,146.5,25.3466]
[1642184376365,22.91866778,146.58,146.5,25.6066]
[1642184377668,27.0254,146.6,146.5,25.6066]
[1642184377869,2.729,146.6,146.5,100.7046]
[1642184378069,2.729,146.6,146.5,102.40537588]
[1642184378672,30.79997097,146.65,146.5,102.40537588]
[1642184378870,30.79997097,146.65,146.51,24.0098]
[1642184378871,2.728,146.64,146.51,24.0098]
[1642184379071,2.728,146.64,146.57,10.232]
[1642184379271,6.62040313,146.64,146.57,10.232]
[1642184379471,6.87040313,146.64,146.57,16.482]
[1642184380270,3.89240313,146.63,146.57,16.482]
[1642184382277,3.89240313,146.63,146.55,10.2333]
[1642184382479,2.728,146.62,146.55,16.2333]
[1642184382672,2.728,146.62,146.55,6.0]
[1642184383272,2.728,146.62,146.52,15.86]
[1642184383473,2.728,146.62,146.54,10.2344]
[1642184383872,2.978,146.62,146.54,16.4844]
[1642184384074,3.89240313,146.61,146.54,16.4844]
[1642184384474,3.89240313,146.61,146.54,16.7444]
[1642184385778,3.89240313,146.63,146.54,16.7444]
[1642184386877,3.89240313,146.63,146.55,4.77087078]
[1642184387077,3.89240313,146.63,146.57,10.2315]
[1642184387479,3.89240313,146.63,146.57,16.7415]
[1642184387681,3.89240313,146.63,146.58,9.86]
[1642184387881,3.89240313,146.63,146.58,15.875]
[1642184388079,3.89240313,146.63,146.6,10.2281]
[1642184388278,3.89240313,146.63,146.61,2.03219997]
[1642184388478,3.89240313,146.63,146.61,8.28219997]
[1642184388684,3.89240313,146.66,146.61,8.28219997]
[1642184390487,3.89240313,146.66,146.61,18.51129997]
[1642184392588,3.89240313,146.66,146.61,2.28219997]
[1642184392788,2.727,146.65,146.61,2.28219997]
[1642184392987,2.727,146.65,146.61,0.25]
[1642184393189,2.727,146.65,146.58,16.11]
[1642184393391,2.727,146.65,146.58,6.0]
[1642184393588,2.977,146.65,146.55,6.0]
[1642184393987,13.2095,146.65,146.53,26.0943]
[1642184394188,5.59317901,146.64,146.53,26.0943]
[1642184394389,2.728,146.63,146.53,26.0943]
[1642184395391,3.89240313,146.62,146.53,26.0943]
[1642184395888,2.728,146.61,146.53,15.86]
[1642184396090,3.89240313,146.62,146.53,16.11]
[1642184396490,23.72975114,146.61,146.53,16.11]
[1642184396690,33.96515114,146.61,146.53,16.11]
[1642184399792,33.96515114,146.61,146.53,6.25]
[1642184399991,34.21515114,146.61,146.52,16.2353]
[1642184400193,2.729,146.6,146.52,16.2353]
[1642184400395,12.965,146.6,146.52,16.2353]
[1642184400594,13.215,146.6,146.52,6.0]
[1642184400793,13.215,146.6,146.5,16.2362]
[1642184401194,81.705,146.6,146.5,6.0]
[1642184401395,81.705,146.6,146.5,0.25]
[1642184401596,22.5057,146.59,146.5,0.25]
[1642184401795,10.2383,146.57,146.5,0.25]
[1642184401994,23.49655769,146.55,146.5,0.25]
[1642184402598,23.49655769,146.55,146.48,16.4879]
[1642184403498,23.49655769,146.55,146.48,16.2379]
[1642184403699,23.74655769,146.55,146.48,6.0]
[1642184403898,2.73,146.54,146.47,6.0]
[1642184404102,2.98,146.54,146.45,15.86]
[1642184404501,10.2414,146.53,146.45,15.86]
[1642184404701,2.73,146.52,146.45,15.86]
[1642184404900,2.73,146.53,146.45,10.11]
[1642184405102,0.25,146.52,146.45,10.11]
[1642184405303,2.73,146.51,146.45,16.11]
[1642184405501,2.98,146.51,146.45,16.11]
[1642184405703,2.98,146.51,146.45,6.25]
[1642184406102,2.98,146.51,146.45,0.25]
[1642184406302,10.2429,146.5,146.39,9.86]
[1642184406504,2.731,146.49,146.39,9.86]
[1642184406903,2.981,146.49,146.39,9.86]
[1642184407104,26.8492679,146.48,146.39,9.86]
[1642184407307,10.2459,146.46,146.39,9.86]
[1642184407507,2.731,146.45,146.39,9.86]
[1642184408536,2.731,146.47,146.39,9.86]
[1642184408939,2.981,146.47,146.39,9.86]
[1642184409338,10.2466,146.45,146.39,9.86]
[1642184409538,2.731,146.44,146.39,9.86]
[1642184410042,2.731,146.44,146.39,10.11]
[1642184410243,2.731,146.44,146.39,0.25]
[1642184410542,2.731,146.44,146.35,20.3567]
[1642184412946,12.9781,146.44,146.35,20.3567]
[1642184413145,10.2471,146.44,146.35,20.3567]
[1642184413945,10.4971,146.44,146.35,9.86]
[1642184414143,10.2491,146.42,146.32,9.86]
[1642184414343,2.732,146.41,146.3,9.86]
[1642184414544,25.59857731,146.4,146.3,9.86]
[1642184415444,35.84897731,146.4,146.31,10.2496]
[1642184415645,2.733,146.39,146.3,9.86]
[1642184415845,2.733,146.39,146.27,9.86]
[1642184416049,2.733,146.39,146.23,123.26]
[1642184416050,4.68377588,146.39,146.24,9.86]
[1642184416245,27.19317588,146.39,146.24,9.86]
[1642184416646,95.68317588,146.39,146.24,9.88]
[1642184417046,27.19317588,146.39,146.24,10.13]
[1642184417447,37.44407588,146.39,146.25,10.2536]
[1642184418850,35.4933,146.39,146.25,11.95437588]
[1642184419048,35.4933,146.39,146.26,9.86]
[1642184419250,35.4933,146.39,146.3,10.2502]
[1642184419448,35.4933,146.39,146.3,10.5002]
[1642184420052,25.2424,146.39,146.3,10.5002]
[1642184421853,35.4932,146.39,146.3,10.5002]
[1642184422152,35.7432,146.39,146.3,0.25]
[1642184422553,104.2332,146.39,146.26,10.11]
[1642184422952,35.7432,146.39,146.26,10.11]
[1642184423153,35.7432,146.39,146.26,22.06387588]
[1642184423353,35.7432,146.39,146.26,22.32387588]
[1642184427958,35.7432,146.39,146.26,20.6231]
[1642184429959,35.7432,146.39,146.26,22.32387588]
[1642184430560,12.9838,146.39,146.26,22.32387588]
[1642184430760,2.733,146.39,146.26,22.32387588]
[1642184430959,25.59857731,146.4,146.27,68.49]
[1642184431160,25.59857731,146.4,146.33,10.2486]
[1642184431564,25.59857731,146.4,146.33,10.4986]
[1642184432365,2.732,146.39,146.33,10.4986]
[1642184433765,28.33057731,146.4,146.33,10.4986]
[1642184433967,25.59857731,146.4,146.33,10.4986]
[1642184435192,2.732,146.42,146.33,10.7586]
[1642184435390,24.3837,146.43,146.33,10.7586]
[1642184435889,2.732,146.45,146.33,10.7586]
[1642184436093,2.982,146.45,146.34,68.49]
[1642184436291,26.04995043,146.44,146.34,78.35]
[1642184436491,2.732,146.43,146.39,10.2442]
[1642184436893,2.732,146.43,146.39,10.4942]
[1642184437592,2.732,146.43,146.39,0.25]
[1642184437991,2.732,146.43,146.35,34.3973]
[1642184439295,2.732,146.43,146.38,10.2452]
[1642184439492,26.04995043,146.44,146.38,10.2452]
[1642184439493,28.78195043,146.44,146.38,10.4952]
[1642184441995,2.732,146.44,146.38,10.4952]
[1642184442193,2.732,146.45,146.38,18.4192]
[1642184442396,2.731,146.48,146.38,28.5392]
[1642184442593,2.731,146.52,146.38,28.5392]
[1642184442793,2.731,146.52,146.38,52.4375]
[1642184442993,28.4736063,146.51,146.38,52.1775]
[1642184443294,2.731,146.5,146.38,52.4375]
[1642184443493,2.981,146.5,146.38,20.3552]
[1642184443694,26.4462,146.5,146.38,20.3552]
[1642184444296,36.6892,146.5,146.38,10.11]
[1642184446296,36.6892,146.5,146.38,20.3551]
[1642184446696,40.57919439,146.5,146.38,20.3551]
[1642184447099,40.57919439,146.5,146.38,10.11]
[1642184449198,50.43919439,146.5,146.38,0.25]
[1642184449602,3.88999439,146.48,146.35,10.11]
[1642184449798,26.3243,146.47,146.35,10.11]
[1642184449999,10.2471,146.44,146.35,10.11]
[1642184450199,2.732,146.43,146.35,10.11]
[1642184450799,24.18545768,146.42,146.35,10.11]
[1642184451400,24.18545768,146.42,146.35,0.25]
[1642184451802,2.732,146.41,146.33,0.25]
[1642184452104,2.732,146.41,146.32,0.25]
[1642184452507,2.982,146.41,146.31,3.8027203]
[1642184453107,2.982,146.41,146.29,38.5460203]
[1642184453306,10.2502,146.4,146.31,10.2496]
[1642184453505,2.733,146.39,146.31,10.2496]
[1642184453906,2.733,146.4,146.31,10.4996]
[1642184455307,10.2506,146.39,146.31,10.4996]
[1642184455708,10.2506,146.39,146.31,0.25]
[1642184455911,10.2506,146.39,146.29,38.7960203]
[1642184456509,2.733,146.4,146.29,38.7960203]
[1642184456711,2.733,146.4,146.31,1.91617837]
[1642184456912,24.18545768,146.42,146.31,11.77617837]
[1642184457212,24.18545768,146.42,146.32,1.70077588]
[1642184457409,24.18545768,146.42,146.33,9.86]
[1642184457809,24.18545768,146.42,146.33,10.37]
[1642184458409,24.18545768,146.42,146.36,10.2461]
[1642184458810,24.18545768,146.42,146.36,10.4961]
[1642184460811,2.732,146.44,146.36,10.4961]
[1642184461041,2.732,146.46,146.36,10.4961]
[1642184461515,2.982,146.46,146.36,10.4961]
[1642184461914,30.79175255,146.45,146.36,10.4961]
[1642184462113,2.732,146.44,146.36,10.4961]
[1642184462321,2.732,146.44,146.36,0.25]
[1642184462515,2.982,146.44,146.33,4.0527203]
[1642184462713,2.982,146.44,146.33,0.25]
[1642184462914,2.982,146.44,146.32,28.1482203]